{"text_format":"3","workbook":"xlsx","n_sheets":4,"sheets":["쇼핑 목록","예산 세부 내역","할 일 목록","공유 목록"],"not_rendered":{"charts":2,"images":2,"defined_names":12},"read":"whole","date_system":"1900"}

{"sheet":"쇼핑 목록","index":0,"n_rows":25,"n_cols":8,"rows_kept":25,"merged":[[2,1,2,7],[3,1,3,2],[4,4,6,7]]}
[null,"신학기 계획","플래너"]
[]
[null,"예산 세부 내역에 입력한 예산 범주 금액을 기준으로 쇼핑 진행 상황을 추적해 보세요."]
[null,"예산 요약",null,null,{"$f":"\"구입 진행률 (\"&COUNTIFS(체크리스트[산 물건], \">0\")&\" / \"&COUNTIFS(체크리스트[사야 할 물건], \">0\")&\")\"","v":"구입 진행률 (1 / 6)"}]
[null,"예산",{"v":1500,"d":"₩1,500.00"},null,{"$f":"IFERROR(COUNTIFS(체크리스트[사야 할 물건],\">0\",체크리스트[산 물건],\">0\")/사야할물건합계,0)","v":{"v":0.16666666666666666,"d":"17%"}}]
[null,"쇼핑 목록 합계",{"$f":"IFERROR(SUM(체크리스트합계), \"\")","v":{"v":365,"d":"₩365.00"}}]
[null,"남은 현금",{"$f":"IFERROR(C5-C6, \"\")","v":{"v":1135,"d":"₩1,135.00"}}]
[null,"쇼핑 목록"]
[null,"항목","범주","수량","사야 할 물건","비용","산 물건","합계 금액"]
[null,"수학","교과서",1,1,{"v":55,"d":"₩55.00"},1,{"$f":"IFERROR(체크리스트[수량]*체크리스트[비용], \"\")","v":{"v":55,"d":"₩55.00"}}]
[null,"영어","교과서",1,1,null,null,{"$f":"IFERROR(체크리스트[수량]*체크리스트[비용], \"\")","v":0}]
[null,"백팩","소모품",1,null,{"v":30,"d":"₩30.00"},null,{"$f":"IFERROR(체크리스트[수량]*체크리스트[비용], \"\")","v":{"v":30,"d":"₩30.00"}}]
[null,"계산기","소모품",1,{"$nulls":3},{"$f":"IFERROR(체크리스트[수량]*체크리스트[비용], \"\")","v":0}]
[null,"형광펜","소모품",3,{"$nulls":3},{"$f":"IFERROR(체크리스트[수량]*체크리스트[비용], \"\")","v":0}]
[null,"교복","옷",2,1,{"v":100,"d":"₩100.00"},null,{"$f":"IFERROR(체크리스트[수량]*체크리스트[비용], \"\")","v":{"v":200,"d":"₩200.00"}}]
[null,"버튼 있는 셔츠","옷",4,{"$nulls":3},{"$f":"IFERROR(체크리스트[수량]*체크리스트[비용], \"\")","v":0}]
[null,"티셔츠","옷",5,{"$nulls":3},{"$f":"IFERROR(체크리스트[수량]*체크리스트[비용], \"\")","v":0}]
[null,"반바지","옷",2,{"$nulls":3},{"$f":"IFERROR(체크리스트[수량]*체크리스트[비용], \"\")","v":0}]
[null,"스니커즈","옷",2,1,null,null,{"$f":"IFERROR(체크리스트[수량]*체크리스트[비용], \"\")","v":0}]
[null,"양말","옷",10,{"$nulls":3},{"$f":"IFERROR(체크리스트[수량]*체크리스트[비용], \"\")","v":0}]
[null,"봄 재킷","옷",1,1,{"v":80,"d":"₩80.00"},null,{"$f":"IFERROR(체크리스트[수량]*체크리스트[비용], \"\")","v":{"v":80,"d":"₩80.00"}}]
[null,"스웨터","옷",1,{"$nulls":3},{"$f":"IFERROR(체크리스트[수량]*체크리스트[비용], \"\")","v":0}]
[null,"후드","옷",1,{"$nulls":3},{"$f":"IFERROR(체크리스트[수량]*체크리스트[비용], \"\")","v":0}]
[null,"속옷","옷",10,{"$nulls":3},{"$f":"IFERROR(체크리스트[수량]*체크리스트[비용], \"\")","v":0}]
[null,"겨울 재킷","옷",1,1,null,null,{"$f":"IFERROR(체크리스트[수량]*체크리스트[비용], \"\")","v":0}]

{"sheet":"예산 세부 내역","index":1,"n_rows":6,"n_cols":3,"rows_kept":6}
[null,"예산 세부 내역"]
[null,"쇼핑 목록에서 추적할 범주와 예산 금액을 입력합니다."]
[null,"범주","합계 금액"]
[null,"옷",{"$f":"IFERROR(SUMIFS(체크리스트[합계 금액],체크리스트[범주],범주[범주]), \"\")","v":{"v":280,"d":"₩280.00"}}]
[null,"소모품",{"$f":"IFERROR(SUMIFS(체크리스트[합계 금액],체크리스트[범주],범주[범주]), \"\")","v":{"v":30,"d":"₩30.00"}}]
[null,"교과서",{"$f":"IFERROR(SUMIFS(체크리스트[합계 금액],체크리스트[범주],범주[범주]), \"\")","v":{"v":55,"d":"₩55.00"}}]

{"sheet":"할 일 목록","index":2,"n_rows":22,"n_cols":3,"rows_kept":22}
[null,"할 일 목록"]
[null,"학기가 시작되기 전에 해야 할 일들을 추적합니다."]
[null,"완료","작업"]
[null,"x","등록 양식 모두 작성하기"]
[null,null,"필요한 경우 학교 체력 검사와 시력 검사 예약하기"]
[null,null,"필수 예방 접종을 모두 맞았는지 확인하기"]
[null,null,"병원에서 복용 중인 약물과 관련된 복용 안내장 받기"]
[null,null,"학교 복장 규정 확인하기"]
[null,null,"학교 준비물 목록 받기"]
[null,null,"선생님 만나기"]
[null,null,"선생님이 선호하는 연락 방법(전화, 전자 메일, 메모) 확인하기"]
[null,null,"아이와 함께 학교 둘러보기"]
[null,null,"아이가 집 전화 번호, 직장 전화 번호, 집 주소를 외우는지 확인하기"]
[null,null,"교통편을 파악하고 안전하게 만날 장소를 정하고 경로 연습해 보기"]
[null,null,"걸어서 통학하는 경우 아이와 함께 등하굣길을 여러 차례 다녀 보기"]
[null,null,"카풀로 통학하는 경우, 카풀 운전자들에게 아이 소개하기"]
[null,null,"버스로 통학하는 경우 시간과 버스 정류장 확인하기"]
[null,null,"탁아 시설/방과 후 시설 확인하기"]
[null,null,"아침, 간식, 도시락, 방과 후 식사 메뉴 계획하기"]
[null,null,"숙제 위치와 일정 확인하기"]
[null,null,"학기가 시작하기 최소 2주 전부터 제시간에 잠자리에 드는 연습하기"]
[null,null,"각종 학교 행사와 활동을 적을 달력 준비하기"]

{"sheet":"공유 목록","index":3,"n_rows":4,"n_cols":5,"rows_kept":4}
[null,"공유 목록",null,null,"다른 사람이 작성할 수 있도록 이 목록을 공유합니다. 오른쪽 위에서 공유를 선택하거나 ALT 키를 누르고 YU 키를 누릅니다. 파일을 OneDrive에 저장하고 친구들에게 링크를 보냅니다."]
[null,"이름","전자 메일","공유 여부"]
[null,"사람 1","someone@email.com","예"]
[null,"사람 2","someone@email.com","아니요"]